bitfinex-derivatives/quotes_BNBF0:USTF0_20260110
["timestamp","ask_amount","ask_price","bid_price","bid_amount"]
[1768031391717,2.75489067,907.59,905.66,0.68358435]
[1768031392013,2.75489067,907.59,905.67,0.68358435]
[1768031392216,2.75489067,907.59,905.68,0.68358435]
[1768031392416,2.75489067,907.59,905.69,0.68358435]
[1768031392615,2.75489067,907.59,905.7,0.68358435]
[1768031392817,2.75489067,907.59,905.71,0.68358435]
[1768031393112,2.75489067,907.59,905.72,0.68358435]
[1768031393316,2.75489067,907.59,905.73,0.68358435]
[1768031393514,2.75489067,907.59,905.74,0.68358435]
[1768031393717,2.75489067,907.59,905.75,0.68358435]
[1768031393914,2.75489067,907.59,905.48,2.112]
[1768031394218,2.75489067,907.59,905.49,0.68506447]
[1768031394515,2.75489067,907.58,905.5,0.68506447]
[1768031394714,2.75489067,907.58,905.51,0.68506447]
[1768031394913,2.75489067,907.58,905.52,0.68506447]
[1768031395218,2.75489067,907.58,905.53,0.68506447]
[1768031395418,2.75489067,907.58,905.54,0.68506447]
[1768031395618,2.75489067,907.58,905.55,0.68506447]
[1768031395915,2.75489067,907.58,905.56,0.68506447]
[1768031396115,2.75489067,907.58,905.57,0.68506447]
[1768031396320,2.75489067,907.58,905.58,0.68506447]
[1768031396515,2.75489067,907.58,905.59,0.68506447]
[1768031396720,2.75489067,907.58,905.6,0.68506447]
[1768031396916,2.75489067,907.58,905.61,0.68506447]
[1768031397114,2.75489067,907.58,905.62,0.68506447]
[1768031397318,2.75489067,907.58,905.63,0.68506447]
[1768031397520,2.75489067,907.58,905.64,0.68506447]
[1768031397817,2.75489067,907.57,905.65,0.68506447]
[1768031398017,2.75489067,907.57,905.66,0.68506447]
[1768031398219,2.75489067,907.57,905.67,0.68506447]
[1768031398419,2.75489067,907.57,905.68,0.68506447]
[1768031398618,2.75489067,907.57,905.69,0.68506447]
[1768031398823,2.75489067,907.57,905.7,0.68506447]
[1768031399123,2.75489067,907.57,905.49,0.82699921]
[1768031399124,2.75489067,907.56,905.71,0.68506447]
[1768031399319,2.75489067,907.56,905.72,0.68506447]
[1768031399621,2.75489067,907.56,905.73,0.68506447]
[1768031399818,2.75489067,907.56,905.74,0.68506447]
[1768031400022,2.75489067,907.56,905.75,0.68506447]
[1768031400319,2.75489067,907.56,905.76,0.68506447]
[1768031400517,2.75489067,907.56,905.77,0.68506447]
[1768031400719,2.75489067,907.56,905.51,0.82699921]
[1768031400720,2.75489067,907.56,905.78,0.68506447]
[1768031400918,2.75489067,907.56,905.79,0.68506447]
[1768031401117,2.75489067,907.56,905.8,0.68506447]
[1768031401318,2.75489067,907.55,905.51,0.82699921]
[1768031401520,2.75489067,907.55,905.52,0.68591921]
[1768031401719,2.75489067,907.55,905.53,0.68591921]
[1768031401924,2.75489067,907.55,905.54,0.68591921]
[1768031402118,2.75489067,907.55,905.55,0.68591921]
[1768031402323,2.75489067,907.54,905.56,0.68591921]
[1768031402521,2.75489067,907.54,905.57,0.68591921]
[1768031402722,2.75489067,907.54,905.58,0.68591921]
[1768031402923,2.75489067,907.54,905.59,0.68591921]
[1768031403122,2.75489067,907.54,905.6,0.68591921]
[1768031403319,2.75489067,907.51,905.61,0.68591921]
[1768031403520,2.75489067,907.51,905.62,0.68591921]
[1768031403721,2.75489067,907.51,905.63,0.68591921]
[1768031403920,2.75489067,907.51,905.64,0.68591921]
[1768031404123,2.75489067,907.51,905.65,0.68591921]
[1768031404325,2.75489067,907.5,905.66,0.68591921]
[1768031404527,2.75489067,907.5,905.67,0.68591921]
[1768031404726,2.75489067,907.5,905.68,0.68591921]
[1768031404921,2.75489067,907.5,905.69,0.68591921]
[1768031405122,2.75489067,907.5,905.7,0.68591921]
[1768031405320,2.75489067,907.49,905.71,0.68591921]
[1768031405522,2.75489067,907.49,905.72,0.68591921]
[1768031405726,2.75489067,907.49,905.73,0.68591921]
[1768031406023,2.75489067,907.49,905.74,0.68591921]
[1768031406227,2.75489067,907.49,905.75,0.68591921]
[1768031406428,2.75489067,907.48,905.76,0.68591921]
[1768031406626,2.75489067,907.48,905.77,0.68591921]
[1768031406828,2.75489067,907.48,905.78,0.68591921]
[1768031407029,2.75489067,907.48,905.79,0.68591921]
[1768031407229,2.75489067,907.48,905.8,0.68591921]
[1768031407429,2.75489067,907.47,905.81,0.68591921]
[1768031407729,2.75489067,907.47,905.82,0.68591921]
[1768031408029,2.75489067,907.47,905.83,0.68591921]
[1768031408329,2.75489067,907.47,905.84,0.68591921]
[1768031408530,2.75489067,907.46,905.85,0.68591921]
[1768031408828,2.75489067,907.46,905.57,0.82699921]
[1768031409029,2.75489067,907.46,905.58,0.68717335]
[1768031409225,2.75489067,907.46,905.59,0.68717335]
[1768031409431,2.75489067,907.46,905.6,0.68717335]
[1768031409630,2.75489067,907.46,905.61,0.68717335]
[1768031409831,2.75489067,907.46,905.62,0.68717335]
[1768031410026,2.75489067,907.46,905.63,0.68717335]
[1768031410332,2.75489067,907.46,905.64,0.68717335]
[1768031410628,2.75489067,907.46,905.65,0.68717335]
[1768031410827,2.75489067,907.46,905.66,0.68717335]
[1768031411031,2.75489067,907.46,905.67,0.68717335]
[1768031411232,2.75489067,907.46,905.68,0.68717335]
[1768031411427,2.75489067,907.46,905.69,0.68717335]
[1768031411632,2.75489067,907.45,905.7,0.68717335]
[1768031411833,2.75489067,907.45,905.71,0.68717335]
[1768031412031,2.75489067,907.45,905.72,0.68717335]
[1768031412228,2.75489067,907.45,905.73,0.68717335]
[1768031412427,2.75489067,907.45,905.74,0.68717335]
[1768031412632,2.75489067,907.45,905.75,0.68717335]
[1768031412830,2.75489067,907.45,905.76,0.68717335]
[1768031413029,2.75489067,907.45,905.77,0.68717335]
[1768031413233,2.75489067,907.44,905.78,0.68717335]
[1768031413428,2.75489067,907.44,905.79,0.68717335]
[1768031413633,2.75489067,907.44,905.8,0.68717335]
[1768031413934,2.75489067,907.44,905.81,0.68717335]
[1768031414134,2.75489067,907.43,905.82,0.68717335]
[1768031414430,2.75489067,907.43,905.83,0.68717335]
[1768031414635,2.75489067,907.43,905.84,0.68717335]
[1768031414833,2.75489067,907.43,905.85,0.68717335]
[1768031415033,2.75489067,907.43,905.86,0.68717335]
[1768031415234,2.75489067,907.43,905.6,0.82699921]
[1768031415235,2.75489067,907.42,905.87,0.68717335]
[1768031415435,2.75489067,907.42,905.88,0.68717335]
[1768031415635,2.75489067,907.42,905.89,0.68717335]
[1768031415930,2.75489067,907.42,905.9,0.68717335]
[1768031416134,2.75489067,907.42,905.91,0.68821832]
[1768031416332,2.75489067,907.42,905.92,0.68821832]
[1768031416531,2.75489067,907.42,905.93,0.68821832]
[1768031416835,2.75489067,907.42,905.64,0.82699921]
[1768031417035,2.75489067,907.42,905.65,0.68821904]
[1768031417330,2.75489067,907.42,905.66,0.68821904]
[1768031417530,2.75489067,907.42,905.67,0.68821904]
[1768031417733,2.75489067,907.42,905.68,0.68821904]
[1768031417934,2.75489067,907.42,905.69,0.68821904]
[1768031418132,2.75489067,907.42,905.7,0.68821904]
[1768031418331,2.75489067,907.42,905.71,0.68821904]
[1768031418538,2.75489067,907.42,905.72,0.68821904]
[1768031418736,2.75489067,907.42,905.73,0.68821904]
[1768031418936,2.75489067,907.42,905.74,0.68821904]
[1768031419136,2.75489067,907.42,905.75,0.68821904]
[1768031419341,2.75489067,907.42,905.76,0.68821904]
[1768031419536,2.75489067,907.42,905.77,0.68821904]
[1768031419741,0.19198199,907.01,905.78,0.68821904]
[1768031419941,0.19198199,907.01,905.79,0.68821904]
[1768031420138,0.19198199,907.01,905.8,0.68821904]
[1768031420437,0.19198199,907.01,905.81,0.68821904]
[1768031420636,0.19198199,907.01,905.82,0.68821904]
[1768031420937,0.19198199,907.01,905.83,0.68821904]
[1768031421139,0.19198199,907.01,905.84,0.68821904]
[1768031421439,0.19198199,907.01,905.85,0.68821904]
[1768031421638,0.19198199,907.01,905.86,0.68821904]
[1768031421839,0.19198199,907.01,905.87,0.68821904]
[1768031422139,0.19198199,907.01,905.88,0.68821904]
[1768031422338,0.19198199,907.01,905.89,0.68821904]
[1768031422542,0.19198199,907.01,905.9,0.68821904]
[1768031422743,0.19198199,907.01,905.91,0.68821904]
[1768031422943,0.19198199,907.01,905.92,0.68821904]
[1768031423141,0.19198199,907.01,905.93,0.68821904]
[1768031423339,0.19198199,907.01,905.64,0.82699921]
[1768031423641,0.19198199,907.01,905.65,0.68771533]
[1768031423943,0.19198199,907.01,905.66,0.68771533]
[1768031424140,0.19198199,907.01,905.67,0.68771533]
[1768031424344,0.19198199,907.01,905.68,0.68771533]
[1768031424641,0.19198199,907.01,905.69,0.68771533]
[1768031424840,0.19198199,907.01,905.7,0.68771533]
[1768031425039,0.19198199,907.01,905.71,0.68771533]
[1768031425241,0.19198199,907.01,905.72,0.68771533]
[1768031425440,0.19198199,907.01,905.73,0.68771533]
[1768031425643,0.19198199,907.01,905.64,0.82699921]
[1768031425644,0.19198199,907.01,905.74,0.68771533]
[1768031425842,0.19198199,907.01,905.75,0.68771533]
[1768031426045,0.19198199,907.01,905.76,0.68771533]
[1768031426341,0.19198199,907.01,905.77,0.68771533]
[1768031426544,0.19198199,907.01,905.78,0.68771533]
[1768031426840,0.19198199,907.01,905.79,0.68771533]
[1768031427044,0.19198199,907.01,905.8,0.68771533]
[1768031427245,0.19198199,907.01,905.81,0.68771533]
[1768031427445,0.19198199,907.01,905.82,0.68771533]
[1768031427644,0.19198199,907.01,905.83,0.68771533]
[1768031427845,0.19198199,907.01,905.84,0.68771533]
[1768031428146,0.19198199,907.01,905.85,0.68771533]
[1768031428445,0.19198199,907.01,905.86,0.68771533]
[1768031428645,0.19198199,907.01,905.87,0.68771533]
[1768031428842,0.19198199,907.01,905.88,0.68771533]
[1768031429044,0.19198199,907.01,905.89,0.68771533]
[1768031429248,0.19198199,907.01,905.9,0.68771533]
[1768031429447,0.19198199,907.01,905.91,0.68771533]
[1768031429644,0.19198199,907.01,905.92,0.68771533]
[1768031429841,0.19198199,907.01,905.93,0.68771533]
[1768031430143,0.19198199,907.01,905.94,0.68771533]
[1768031430343,0.19198199,907.01,905.65,0.82699921]
[1768031430547,0.19198199,907.01,905.66,0.68787507]
[1768031430744,0.19198199,907.01,905.67,0.68787507]
[1768031430948,0.19198199,907.01,905.68,0.68787507]
[1768031431246,0.19198199,907.01,905.69,0.68787507]
[1768031431447,0.19198199,907.01,905.7,0.68787507]
[1768031431645,0.19198199,907.01,905.71,0.68787507]
[1768031431950,0.19198199,907.01,905.72,0.68787507]
[1768031432150,0.19198199,907.01,905.73,0.68787507]
[1768031432450,0.19198199,907.01,905.74,0.68787507]
[1768031432649,0.19198199,907.01,905.75,0.68787507]
[1768031432847,0.19198199,907.01,905.76,0.68787507]
[1768031433148,0.19198199,907.01,905.77,0.68787507]
[1768031433346,0.19198199,907.01,905.78,0.68787507]
[1768031433546,0.19198199,907.01,905.79,0.68787507]
[1768031433746,0.19198199,907.01,905.8,0.68787507]
[1768031433945,0.19198199,907.01,905.81,0.68787507]
[1768031434152,0.19198199,907.01,905.82,0.68787507]
[1768031434350,0.19198199,907.01,905.83,0.68787507]
[1768031434549,0.19198199,907.01,905.84,0.68787507]
[1768031434851,0.19198199,907.01,905.85,0.68787507]
[1768031435050,0.19198199,907.01,905.86,0.68787507]
[1768031435251,0.19198199,907.01,905.87,0.68787507]
[1768031435450,0.19198199,907.01,905.88,0.68787507]
[1768031435652,0.19198199,907.01,905.89,0.68787507]
[1768031435948,0.19198199,907.01,905.9,0.68787507]
[1768031436149,0.19198199,907.01,905.91,0.68787507]
[1768031436352,0.19198199,907.01,905.92,0.68787507]
[1768031436647,0.19198199,907.01,905.93,0.68787507]
[1768031436852,0.19198199,907.01,905.94,0.68787507]
[1768031437054,0.19198199,907.01,905.65,0.82699921]
[1768031437348,0.19198199,907.01,905.66,0.68787444]
[1768031437551,0.19198199,907.01,905.67,0.68787444]
[1768031437752,0.19198199,907.01,905.68,0.68787444]
[1768031437948,0.19198199,907.01,905.69,0.68787444]
[1768031438153,0.19198199,907.01,905.7,0.68787444]
[1768031438349,0.19198199,907.01,905.71,0.68787444]
[1768031438554,0.19198199,907.01,905.72,0.68787444]
[1768031438755,0.19198199,907.01,905.73,0.68787444]
[1768031438955,0.19198199,907.01,905.74,0.68787444]
[1768031439255,0.19198199,907.01,905.75,0.68787444]
[1768031439554,0.19198199,907.01,905.76,0.68787444]
[1768031439753,0.19198199,907.01,905.77,0.68787444]
[1768031439955,0.19198199,907.01,905.78,0.68787444]
[1768031440150,0.19198199,907.01,905.79,0.68787444]
[1768031440355,0.19198199,907.01,905.8,0.68787444]
[1768031440552,0.19198199,907.01,905.81,0.68787444]
[1768031440752,0.19198199,907.01,905.82,0.68787444]
[1768031441055,0.19198199,907.01,905.83,0.68787444]
[1768031441253,0.19198199,907.01,905.84,0.68787444]
[1768031441453,0.19198199,907.01,905.85,0.68787444]
[1768031441652,0.19198199,907.01,905.86,0.68787444]
[1768031441852,0.19198199,907.01,905.87,0.68787444]
[1768031442052,0.19198199,907.01,905.88,0.68787444]
[1768031442353,0.19198199,907.01,905.89,0.68787444]
[1768031442557,0.19198199,907.01,905.9,0.68787444]
[1768031442751,0.19198199,907.01,905.91,0.68787444]
[1768031442954,0.19198199,907.01,905.92,0.68787444]
[1768031443257,0.19198199,907.01,905.93,0.68787444]
[1768031443453,0.19198199,907.01,905.94,0.68787444]
[1768031443758,0.19198199,907.01,905.65,0.82699921]
[1768031444055,0.19198199,907.01,905.66,0.6878724]
[1768031444255,0.19198199,907.01,905.67,0.6878724]
[1768031444457,0.19198199,907.01,905.68,0.6878724]
[1768031444653,0.19198199,907.01,905.69,0.6878724]
[1768031444856,0.19198199,907.01,905.7,0.6878724]
[1768031445054,0.19198199,907.01,905.71,0.6878724]
[1768031445354,0.19198199,907.01,905.72,0.6878724]
[1768031445556,0.19198199,907.01,905.73,0.6878724]
[1768031445757,0.19198199,907.01,905.74,0.6878724]
[1768031446059,0.19198199,907.01,905.75,0.6878724]
[1768031446257,0.19198199,907.01,905.65,0.82699921]
[1768031446258,0.19198199,907.01,905.76,0.6878724]
[1768031446554,0.19198199,907.01,905.77,0.6878724]
[1768031446755,0.19198199,907.01,905.78,0.6878724]
[1768031446956,0.19198199,907.01,905.79,0.6878724]
[1768031447162,0.19198199,907.01,905.8,0.6878724]
[1768031447459,0.19198199,907.01,905.81,0.6878724]
[1768031447663,0.19198199,907.01,905.82,0.6878724]
[1768031447863,0.19198199,907.01,905.83,0.6878724]
[1768031448061,0.19198199,907.01,905.84,0.6878724]
[1768031448262,0.19198199,907.01,905.85,0.6878724]
[1768031448462,0.19198199,907.01,905.86,0.6878724]
[1768031448663,0.19198199,907.01,905.87,0.6878724]
[1768031448864,0.19198199,907.01,905.88,0.6878724]
[1768031449062,0.19198199,907.01,905.89,0.6878724]
[1768031449260,0.19198199,907.01,905.9,0.6878724]
[1768031449461,0.19198199,907.01,905.91,0.6878724]
[1768031449665,0.19198199,907.01,905.92,0.6878724]
[1768031449964,0.19198199,907.01,905.93,0.6878724]
[1768031450163,0.19198199,907.01,905.94,0.6878724]
[1768031450362,0.19198199,907.01,905.65,0.82699921]
[1768031450664,0.19198199,907.01,905.66,0.687889]
[1768031450864,0.19198199,907.01,905.67,0.687889]
[1768031451162,0.19198199,907.01,905.68,0.687889]
[1768031451360,0.19198199,907.01,905.69,0.687889]
[1768031451564,0.19198199,907.01,905.7,0.687889]
[1768031451762,0.19198199,907.01,905.71,0.687889]
[1768031451965,0.19198199,907.01,905.72,0.687889]
[1768031452261,0.19198199,907.01,905.73,0.687889]
[1768031452464,0.19198199,907.01,905.74,0.687889]
[1768031452665,0.19198199,907.01,905.75,0.687889]
[1768031452865,0.19198199,907.01,905.76,0.687889]
[1768031453161,0.19198199,907.01,905.77,0.687889]
[1768031453464,0.19198199,907.01,905.78,0.687889]
[1768031453664,0.19198199,907.01,905.79,0.687889]
[1768031453864,0.19198199,907.01,905.8,0.687889]
[1768031454063,0.19198199,907.01,905.81,0.687889]
[1768031454262,0.19198199,907.01,905.82,0.687889]
[1768031454466,0.19198199,907.01,905.83,0.687889]
[1768031454666,0.19198199,907.01,905.84,0.687889]
[1768031454866,0.19198199,907.01,905.85,0.687889]
[1768031455066,0.19198199,907.01,905.86,0.687889]
[1768031455362,0.19198199,907.01,905.87,0.687889]
[1768031455567,0.19198199,907.01,905.88,0.687889]
[1768031455766,0.19198199,907.01,905.89,0.687889]
[1768031456062,0.19198199,907.01,905.9,0.687889]
[1768031456261,0.19198199,907.01,905.91,0.687889]
[1768031456463,0.19198199,907.01,905.92,0.687889]
[1768031456662,0.19198199,907.01,905.93,0.687889]
[1768031456861,0.19198199,907.01,905.94,0.687889]
[1768031457066,0.19198199,907.01,905.95,0.687889]
[1768031457264,0.19198199,907.01,905.55,2.403]
[1768031457265,0.19198199,907.01,905.96,0.687889]
[1768031457464,0.19198199,907.01,905.97,0.687889]
[1768031457667,0.19198199,907.01,905.68,0.82699921]
[1768031457865,0.19198199,907.01,905.69,0.68794392]
[1768031458068,0.19198199,907.01,905.7,0.68794392]
[1768031458265,0.19198199,907.01,905.71,0.68794392]
[1768031458467,0.19198199,907.01,905.72,0.68794392]
[1768031458669,0.19198199,907.01,905.73,0.68794392]
[1768031458870,0.19198199,907.01,905.74,0.68794392]
[1768031459070,0.19198199,907.01,905.75,0.68794392]
[1768031459270,0.19198199,907.01,905.76,0.68794392]
[1768031459566,0.19198199,907.01,905.77,0.68794392]
[1768031459768,0.19198199,907.01,905.78,0.68794392]
[1768031460067,0.19198199,907.01,905.79,0.68794392]
[1768031460272,0.19198199,907.01,905.8,0.68794392]
[1768031460472,0.19198199,907.01,905.81,0.68794392]
[1768031460672,0.19198199,907.01,905.82,0.68794392]
[1768031460869,0.19198199,907.01,905.83,0.68794392]
[1768031461173,0.19198199,907.01,905.84,0.68794392]
[1768031461375,0.19198199,907.01,905.85,0.68794392]
[1768031461674,0.19198199,907.01,905.86,0.68794392]
[1768031461969,0.19198199,907.01,905.87,0.68794392]
[1768031462169,0.19198199,907.01,905.88,0.68794392]
[1768031462374,0.19198199,907.01,905.89,0.68794392]
[1768031462670,0.19198199,907.01,905.9,0.68794392]
[1768031462869,0.19198199,907.01,905.69,0.82699921]
[1768031462870,0.19198199,907.01,905.91,0.68794392]
[1768031463073,0.19198199,907.01,905.92,0.68794392]
[1768031463373,0.19198199,907.01,905.93,0.68794392]
[1768031463570,0.19198199,907.01,905.94,0.68794392]
[1768031463873,0.19198199,907.01,905.95,0.68794392]
[1768031464074,0.19198199,907.01,905.96,0.68794392]
[1768031464273,0.19198199,907.01,905.97,0.68794392]
[1768031464573,0.19198199,907.01,905.98,0.68794392]
[1768031464873,0.19198199,907.01,905.91,1.619]
[1768031465172,0.19198199,907.01,905.92,0.68778705]
[1768031465369,0.19198199,907.01,905.93,0.68778705]
[1768031465570,0.19198199,907.01,905.94,0.68778705]
[1768031465871,0.19198199,907.01,905.95,0.68778705]
[1768031466070,0.19198199,907.01,905.96,0.68778705]
[1768031466272,0.19198199,907.01,905.97,0.68778705]
[1768031466472,0.19198199,907.01,905.98,0.68778705]
[1768031466670,0.19198199,907.01,905.91,1.619]
[1768031466876,0.19198199,907.01,905.92,0.6877463]
[1768031467075,0.19198199,907.01,905.93,0.6877463]
[1768031467276,0.19198199,907.01,905.94,0.6877463]
[1768031467473,0.19198199,907.01,905.95,0.6877463]
[1768031467674,0.19198199,907.01,905.96,0.6877463]
[1768031467874,0.19198199,907.01,905.97,0.6877463]
[1768031468078,0.19198199,907.01,905.98,0.6877463]
[1768031468375,0.19198199,907.01,905.91,1.619]
[1768031468580,0.19198199,907.01,905.92,0.68771537]
[1768031468877,0.19198199,907.01,905.93,0.68771537]
[1768031469078,0.19198199,907.01,905.91,1.619]
[1768031469079,0.19198199,907.01,905.94,0.68771537]
[1768031469280,0.19198199,907.01,905.95,0.68771537]
[1768031469477,0.19198199,907.01,905.96,0.68771537]
[1768031469677,0.19198199,907.01,905.97,0.68771537]
[1768031469877,0.19198199,907.01,905.98,0.68771537]
[1768031470175,0.19198199,907.01,905.91,1.619]
[1768031470379,0.19198199,907.01,905.92,0.6876912]
[1768031470674,0.19198199,907.01,905.93,0.6876912]
[1768031470879,0.19198199,907.01,905.94,0.6876912]
[1768031471175,0.19198199,907.01,905.95,0.6876912]
[1768031471372,0.19198199,907.01,905.96,0.6876912]
[1768031471578,0.19198199,907.01,905.97,0.6876912]
[1768031471877,0.19198199,907.01,905.98,0.6876912]
[1768031472073,0.19198199,907.01,905.99,0.6876912]
[1768031472278,0.19198199,907.01,906.0,0.6876912]
[1768031472476,0.19198199,907.01,906.01,0.6876912]
[1768031472677,0.19198199,907.01,906.02,0.6876912]
[1768031472877,0.19198199,907.01,906.03,0.6876912]
[1768031473076,0.19198199,907.01,906.04,0.6876912]
[1768031473277,0.19198199,907.01,906.05,0.6876912]
[1768031473477,0.19198199,907.01,906.06,0.6876912]
[1768031473777,0.19198199,907.01,905.91,1.619]
[1768031473978,0.19198199,907.01,905.92,0.68721499]
[1768031474182,0.19198199,907.01,905.93,0.68721499]
[1768031474481,0.19198199,907.01,905.94,0.68721499]
[1768031474780,0.19198199,907.01,905.95,0.68721499]
[1768031474975,0.19198199,907.01,905.96,0.68721499]
[1768031475177,0.19198199,907.01,905.97,0.68721499]
[1768031475382,0.19198199,907.01,905.98,0.68721499]
[1768031475578,0.19198199,907.01,905.99,0.68721499]
[1768031475782,0.19198199,907.01,906.0,0.68721499]
[1768031475979,0.19198199,907.01,906.01,0.68721499]
[1768031476181,0.19198199,907.01,906.02,0.68721499]
[1768031476379,0.19198199,907.01,906.03,0.68721499]
[1768031476583,0.19198199,907.01,906.04,0.68721499]
[1768031476783,0.19198199,907.01,906.05,0.68721499]
[1768031476983,0.19198199,907.01,905.91,1.619]
[1768031477184,0.19198199,907.01,905.92,0.68698391]
[1768031477479,0.19198199,907.01,905.93,0.68698391]
[1768031477683,0.19198199,907.01,905.94,0.68698391]
[1768031477880,0.19198199,907.01,905.95,0.68698391]
[1768031478081,0.19198199,907.01,905.96,0.68698391]
[1768031478384,0.19198199,907.01,905.97,0.68698391]
[1768031478581,0.19198199,907.01,905.98,0.68698391]
[1768031478786,0.19198199,907.01,905.99,0.68698391]
[1768031478985,0.19198199,907.01,906.0,0.68698391]
[1768031479185,0.19198199,907.01,906.01,0.68698391]
[1768031479386,0.19198199,907.01,906.02,0.68698391]
[1768031479586,0.19198199,907.01,906.03,0.68698391]
[1768031479786,0.19198199,907.01,906.04,0.68698391]
[1768031479986,0.19198199,907.01,906.05,0.68682752]
[1768031480184,0.19198199,907.01,905.91,1.619]
[1768031480388,0.19198199,907.01,905.92,0.68677901]
[1768031480587,0.19198199,907.01,905.93,0.68677901]
[1768031480884,0.19198199,907.01,905.94,0.68677901]
[1768031481084,0.19198199,907.01,905.95,0.68677901]
[1768031481384,0.19198199,907.01,905.96,0.68677901]
[1768031481584,0.19198199,907.01,905.97,0.68677901]
[1768031481888,0.19198199,907.01,905.91,1.619]
[1768031482085,0.19198199,907.01,905.57,0.82699921]
[1768031482289,0.19198199,907.01,905.58,0.68747812]
[1768031482586,0.19198199,907.01,905.59,0.68747812]
[1768031482785,0.19198199,907.01,905.6,0.68747812]
[1768031482985,0.19198199,907.01,905.61,0.68747812]
[1768031483189,0.19198199,907.01,905.62,0.68747812]
[1768031483390,0.19198199,907.01,905.63,0.68747812]
[1768031483591,0.19198199,907.01,905.64,0.68747812]
[1768031483790,0.19198199,907.01,905.65,0.68747812]
[1768031483987,0.19198199,907.01,905.66,0.68747812]
[1768031484290,0.19198199,907.01,905.67,0.68747812]
[1768031484487,0.19198199,907.01,905.68,0.68747812]
[1768031484685,0.19198199,907.01,905.69,0.68747812]
[1768031484885,0.19198199,907.01,905.7,0.68747812]
[1768031485089,0.19198199,907.01,905.71,0.68747812]
[1768031485288,0.19198199,907.01,905.72,0.68747812]
[1768031485486,0.19198199,907.01,905.73,0.68747812]
[1768031485786,0.19198199,907.01,905.74,0.68747812]
[1768031485986,0.19198199,907.01,905.75,0.68747812]
[1768031486189,0.19198199,907.01,905.76,0.68747812]
[1768031486387,0.19198199,907.01,905.77,0.68747812]
[1768031486591,0.19198199,907.01,905.78,0.68747812]
[1768031486785,0.19198199,907.01,905.79,0.68747812]
[1768031486990,0.19198199,907.01,905.8,0.68747812]
[1768031487188,0.19198199,907.01,905.81,0.68747812]
[1768031487392,0.19198199,907.01,905.82,0.68747812]
[1768031487590,0.19198199,907.01,905.83,0.68747812]
[1768031487792,0.19198199,907.01,905.84,0.68747812]
[1768031487990,0.19198199,907.01,905.71,2.36]
[1768031487991,0.19198199,907.01,905.85,0.68747812]
[1768031488189,0.19198199,907.01,905.71,2.36]
[1768031488393,0.19198199,907.01,905.72,0.68738526]
[1768031488592,0.19198199,907.01,905.73,0.68738526]
[1768031488791,0.19198199,907.01,905.74,0.68738526]
[1768031488994,0.19198199,907.01,905.75,0.68738526]
[1768031489194,0.19198199,907.01,905.76,0.68738526]
[1768031489395,0.19198199,907.01,905.77,0.68738526]
[1768031489591,0.19198199,907.01,905.78,0.68738526]
[1768031489794,0.19198199,907.01,905.79,0.68738526]
[1768031489995,0.19198199,907.01,905.8,0.68738526]
[1768031490196,0.19198199,907.01,905.81,0.68738526]
[1768031490396,0.19198199,907.01,905.82,0.68738526]
[1768031490596,0.19198199,907.01,905.83,0.68738526]
[1768031490894,0.19198199,907.01,905.84,0.68738526]
[1768031491096,0.19198199,907.01,905.85,0.68738526]
[1768031491392,0.19198199,907.01,905.71,2.36]
[1768031491594,0.19198199,907.01,905.72,0.68734828]
[1768031491793,0.19198199,907.01,905.73,0.68734828]
[1768031491996,0.19198199,907.01,905.74,0.68734828]
[1768031492193,0.19198199,907.01,905.75,0.68734828]
[1768031492393,0.19198199,907.01,905.76,0.68734828]
[1768031492592,0.19198199,907.01,905.77,0.68734828]
[1768031492796,0.19198199,907.01,905.78,0.68734828]
[1768031493092,0.19198199,907.01,905.79,0.68734828]
[1768031493296,0.19198199,907.01,905.8,0.68734828]
[1768031493597,0.19198199,907.01,905.81,0.68734828]
[1768031493897,0.19198199,907.01,905.82,0.68734828]
[1768031494092,0.19198199,907.01,905.83,0.68734828]
[1768031494292,0.19198199,907.01,905.84,0.68734828]
[1768031494494,0.19198199,907.01,905.85,0.68734828]
[1768031494699,0.19198199,907.01,905.71,2.36]
[1768031494894,0.19198199,907.01,905.72,0.68731326]
[1768031495094,0.19198199,907.01,905.73,0.68731326]
[1768031495295,0.19198199,907.01,905.74,0.68731326]
[1768031495495,0.19198199,907.01,905.75,0.68731326]
[1768031495694,0.19198199,907.01,905.76,0.68731326]
[1768031495896,0.19198199,907.01,905.77,0.68731326]
[1768031496099,0.19198199,907.01,905.78,0.68731326]
[1768031496300,0.19198199,907.01,905.79,0.68731326]
[1768031496597,0.19198199,907.01,905.8,0.68731326]
[1768031496796,0.19198199,907.01,905.81,0.68731326]
[1768031497099,0.19198199,907.01,905.71,2.36]
[1768031497100,0.19198199,907.01,905.82,0.68731326]
[1768031497300,0.19198199,907.01,905.83,0.68731326]
[1768031497498,0.19198199,907.01,905.84,0.68731326]
[1768031497700,0.19198199,907.01,905.85,0.68731326]
[1768031497901,0.19198199,907.01,905.71,2.36]
[1768031498096,0.19198199,907.01,905.72,0.68727153]
[1768031498298,0.19198199,907.01,905.73,0.68727153]
[1768031498499,0.19198199,907.01,905.74,0.68727153]
[1768031498697,0.19198199,907.01,905.75,0.68727153]
[1768031498899,0.19198199,907.01,905.76,0.68727153]
[1768031499098,0.19198199,907.01,905.77,0.68727153]
[1768031499297,0.19198199,907.01,905.78,0.68727153]